Cogmind - Beta 11.1 @@@ ROGUE MODE // 2022.07.24 @ 15:25:41 Player: Obelisk Result: Self-destructed Performance ------------- Evolutions (1) 500 Regions Visited (3) 600 Robots Destroyed (22) 110 Value Destroyed (543) 543 Prototype IDs (0) 0 Alien Tech Used (0) 0 Bonus (0) 0 TOTAL SCORE: 1753 Bonus ------- None Cogmind --------- Core Integrity 241/400 Matter 117/300 Energy 265/265 System Corruption 0% Temperature Cool (0) Movement Core (300) Ox5 Location -9/Mines Parts ------- > --- POWER (1) -------- Improved Ion Engine > --- PROPULSION (3) --- (None) > --- UTILITY (3) ------ Improved Heat Sink Small Storage Unit Targeting Computer > --- WEAPON (2) ------- Particle Gun > --- INVENTORY (8) ---- Beam Cannon Heavy Assault Rifle Peak State ------------ > --- POWER ------------ Improved Ion Engine > --- PROPULSION ------- Aluminum Leg Aluminum Leg Aluminum Leg > --- UTILITY ---------- Improved Heat Sink Small Storage Unit Targeting Computer > --- WEAPON ----------- Particle Gun Grenade Launcher > --- INVENTORY -------- Beam Cannon Light Assault Rifle Heavy Assault Rifle Grenade Launcher [Rating: 13] Favorites ----------- Power Improved Ion Engine Engine Improved Ion Engine Propulsion Aluminum Leg Leg Aluminum Leg Utility Small Storage Unit Device Improved Heat Sink Storage Small Storage Unit Processor Targeting Computer Weapon Light Assault Rifle Energy Gun Particle Gun Ballistic Gun Light Assault Rifle Launcher Grenade Launcher Build | -11 -10 -9 -9 ------- Run | Scr Mat Mat Min Slots Evolved 2 | . . 2 . Power . | . . . . Propulsion 1 | . . 1 . Utility 1 | . . 1 . Weapon . | . . . . Parts Attached 20 | 6 7 6 1 Power 3 | 1 . 2 . Engine 3 | 1 . 2 . Core . | . . . . Reactor . | . . . . Propulsion 7 | 2 3 2 . Treads . | . . . . Leg 7 | 2 3 2 . Wheel . | . . . . Hover . | . . . . Flight . | . . . . Utility 4 | 1 2 1 . Device 1 | . 1 . . Storage 2 | 1 1 . . Processor 1 | . . 1 . Hackware . | . . . . Protection . | . . . . Artifact . | . . . . Weapon 6 | 2 2 1 1 Energy Gun 1 | . . 1 . Energy Cannon . | . . . . Ballistic Gun 3 | 2 1 . . Ballistic Cannon . | . . . . Launcher 2 | . 1 . 1 Special Weapon . | . . . . Impact Weapon . | . . . . Slashing Weapon . | . . . . Piercing Weapon . | . . . . Special Melee Weapon . | . . . . Unidentified Prototypes . | . . . . Parts Lost 7 | . 2 . 5 Power 1 | . 1 . . Propulsion 3 | . . . 3 Utility . | . . . . Weapon 3 | . 1 . 2 Highest Loss Streak 5 | . 1 . 5 To Critical Strikes . | . . . . Average Slot Usage (%) 86 | . 80 91 97 Engine 4 | . 2 3 11 Leg 29 | . 28 33 32 Device 8 | . 7 11 11 Storage 12 | . 14 11 11 Processor 4 | . . 11 11 Energy Gun 2 | . . 3 11 Ballistic Gun 15 | . 22 7 . Launcher 6 | . 4 11 10 Naked Turns . | . . . . Heaviest Build 19 | 10 10 19 19 Greatest Support 30 | 20 20 30 30 Greatest Overweight (x) . | . . . . Average Overweight (x) . | . . . . Largest Inventory Capacity 25 | 8 25 8 8 Average Capacity 7 | 6 8 8 8 Most Carried 6 | 3 6 5 3 Average Carried 2 | . 3 3 2 Final Capacity 8 | 8 8 8 8 Final Carried 6 | . 6 3 2 Class Distribution -------------------- 77% | Mutant 22% | Scavenger-Mutant Dominant Class ---------------- Mutant | -10/Materials Mutant | -9/Materials Scavenger-Mutant | -9/Mines Resources | -11 -10 -9 -9 ----------- Run | Scr Mat Mat Min Matter Collected 469 | 172 231 66 . Remotely . | . . . . Salvage Created 612 | . 449 81 82 Parts 44 | . 24 9 11 Haulers Intercepted . | . . . . Recyclers Shooed . | . . . . Parts Field Recycled . | . . . . Retrieved Matter . | . . . . Parts Self-Destructed . | . . . . Prevented . | . . . . Kills | -11 -10 -9 -9 ------- Run | Scr Mat Mat Min Combat Hostiles Destroyed 27 | . 11 2 14 Guns 12 | . 9 2 1 AOE 15 | . 2 . 13 Classes Destroyed 6 | . 4 1 1 Builder 1 | . 1 . . Recycler 1 | . 1 . . Swarmer 9 | . 2 . 7 Grunt 9 | . 9 . . Sentry 2 | . . 2 . Assembled 7 | . . . 7 Best Kill Streak 7 | . 5 1 7 Combat Bots Only 7 | . 4 1 7 Max Kills in Single Turn 2 | . 1 1 2 Gunslinging . | . . . . Exploded 2 | . 1 . 2 Melee . | . . . . Uniques/NPCs Destroyed . | . . . . Combat | -11 -10 -9 -9 -------- Run | Scr Mat Mat Min Damage Taken 1346 | . 631 164 551 Core 308 | . 149 44 115 Absorbed by Shields . | . . . . Core Remaining (%) 70 | 100 40 . . Volleys Fired 73 | . 48 12 13 Largest 2 | . 2 2 2 Hottest 95 | . 50 95 95 Shots Fired 125 | . 86 15 24 Gun 105 | . 80 12 13 Cannon . | . . . . Launcher 20 | . 6 3 11 Special . | . . . . Kinetic 87 | . 80 7 . Thermal 18 | . . 5 13 Explosive 20 | . 6 3 11 Electromagnetic . | . . . . Robot Hit Streak 18 | . 18 5 3 Robot Miss Streak 4 | . 4 1 2 Penetration Max . | . . . . Secondary Targets 2 | . 2 . . Max Gunslinging Chain 1 | . 1 . . Shots Hit Robots 81 | . 59 12 10 Core Hits 61 | . 34 5 22 Critical Kills . | . . . . Critical Parts Destroyed . | . . . . Critical Strikes . | . . . . Melee Attacks . | . . . . Impact . | . . . . Slashing . | . . . . Piercing . | . . . . Sneak Attacks . | . . . . Combat Hostiles . | . . . . Follow-up Attacks . | . . . . Damage Inflicted 1666 | . 680 145 841 Guns 601 | . 444 111 46 Cannons . | . . . . Explosions 1065 | . 236 34 795 Melee . | . . . . Ramming . | . . . . Kinetic 493 | . 444 49 . Thermal 108 | . . 62 46 Explosive 1065 | . 236 34 795 Electromagnetic . | . . . . Impact . | . . . . Slashing . | . . . . Piercing . | . . . . Highest Corruption . | . . . . Average Corruption . | . . . . Corruption Purged . | . . . . Corruption Blocked . | . . . . Overload Shots . | . . . . Overflow Damage 86 | . . . 86 Projectiles . | . . . . Explosions 86 | . . . 86 Melee . | . . . . Knockbacks . | . . . . Impact . | . . . . Kinetic . | . . . . Secondary . | . . . . Self-Inflicted Damage 113 | . . . 113 Shots 5 | . . . 5 Rammed . | . . . . Targets Rammed . | . . . . Kicked . | . . . . Crushed . | . . . . Highest Temperature 157 | . 15 157 32 Average Temperature 40 | . 5 80 21 Received Heat Transfer 407 | . 255 72 80 Siege Activations . | . . . . Robots Corrupted . | . . . . Combat Hostiles . | . . . . Parts Fried . | . . . . Impact Corruptions . | . . . . Robots Melted . | . . . . Combat Hostiles . | . . . . Parts Melted . | . . . . Heat Transferred 259 | . . 148 111 Parts Sabotaged . | . . . . Parts Stolen . | . . . . Parts Stripped . | . . . . Power Chain Reactions . | . . . . Missiles Intercepted . | . . . . Alert | -11 -10 -9 -9 ------- Run | Scr Mat Mat Min Peak Influence 466 | . 317 283 466 Initial 133 | . . 133 109 Average 167 | . 135 178 345 Maximum Alert Level 2 | . 1 1 2 Low Security (%) 62 | 100 72 75 . Level 1 33 | . 27 24 74 Level 2 4 | . . . 24 Level 3 . | . . . . Level 4 . | . . . . Level 5 . | . . . . High Security . | . . . . Max Security . | . . . . Squads Dispatched 3 | . 3 . . Investigation 1 | . 1 . . Extermination . | . . . . Reinforcement 2 | . 2 . . Assault . | . . . . Garrison . | . . . . Intercept . | . . . . Searches Triggered . | . . . . Construction Impeded . | . . . . Haulers Reinforced . | . . . . Active Scanning Responses . | . . . . Cargo Convoy Interrupts . | . . . . Stealth | -11 -10 -9 -9 --------- Run | Scr Mat Mat Min Distress Signals . | . . . . Communications Jammed . | . . . . Distress Signals . | . . . . Times Spotted 30 | . 13 2 15 Peak Tracking Total 4 | . 4 1 4 Tactical Retreats . | . . . . Traps | -11 -10 -9 -9 ------- Run | Scr Mat Mat Min Traps Triggered 1 | . 1 . . Indirectly . | . . . . Trap Hack Attempts . | . . . . Triggered . | . . . . Disarmed . | . . . . Reprogrammed . | . . . . Reused . | . . . . Traps Extracted . | . . . . Installed . | . . . . Triggered . | . . . . Machines | -11 -10 -9 -9 ---------- Run | Scr Mat Mat Min Machines Disabled 2 | . 1 . 1 Max in Single Turn 1 | . 1 . 1 Machines Sabotaged . | . . . . Garrisons Compromised . | . . . . Overloaded Fab Kills . | . . . . Hacking | -11 -10 -9 -9 --------- Run | Scr Mat Mat Min Machines Accessed . | . . . . Terminals . | . . . . Fabricators . | . . . . Repair Stations . | . . . . Recycling Units . | . . . . Scanalyzers . | . . . . Garrison Access . | . . . . Total Hacks . | . . . . Successful . | . . . . Failed . | . . . . Catastrophic . | . . . . Database Lockouts . | . . . . Manual . | . . . . Terminals . | . . . . Fabricators . | . . . . Repair Stations . | . . . . Recycling Units . | . . . . Scanalyzers . | . . . . Garrison Access . | . . . . Terminal Hacks . | . . . . Fabricator Hacks . | . . . . Repair Station Hacks . | . . . . Recycling Unit Hacks . | . . . . Scanalyzer . | . . . . Garrison Access Hacks . | . . . . Unauthorized Hacks . | . . . . Terminals . | . . . . Fabricators . | . . . . Repair Stations . | . . . . Recycling Units . | . . . . Scanalyzers . | . . . . Garrison Access . | . . . . Data Cores Recovered . | . . . . Used . | . . . . Hacking Detections . | . . . . Full Trace Events . | . . . . Feedback Events . | . . . . Feedback Blocked . | . . . . Robot Schematics Acquired . | . . . . Robots Built . | . . . . Authchips . | . . . . Time . | . . . . Total Robot Build Rating . | . . . . Part Schematics Acquired . | . . . . Parts Built . | . . . . Authchips . | . . . . Time . | . . . . Total Part Build Rating . | . . . . Parts Repaired . | . . . . Time . | . . . . Parts Recycled . | . . . . Recycled Matter . | . . . . Retrieved Matter . | . . . . Retrieved Components . | . . . . Parts Scanalyzed . | . . . . Part Schematics Acquired . | . . . . Parts Damaged . | . . . . Bothacking | -11 -10 -9 -9 ------------ Run | Scr Mat Mat Min Used RIF Installer . | . . . . Robots Hacked . | . . . . Non-combat . | . . . . Combat . | . . . . Robot Hacks Applied . | . . . . Relay Couplers Released . | . . . . Fabnet Peak Effective % . | . . . . Robots Rewired . | . . . . Allies Hacked . | . . . . Hacks Repelled . | . . . . Allies | -11 -10 -9 -9 -------- Run | Scr Mat Mat Min Total Allies . | . . . . Largest Group . | . . . . Highest-Rated Group . | . . . . Highest-Rated Ally . | . . . . Total Orders . | . . . . Ally Attacks . | . . . . Total Damage . | . . . . Kills . | . . . . Allies Corrupted . | . . . . Allies Melted . | . . . . Intel | -11 -10 -9 -9 ------- Run | Scr Mat Mat Min Robot Analysis Total . | . . . . Derelict Logs Recovered 1 | . . . 1 Drone Launches . | . . . . Drone Recoveries . | . . . . Exploration | -11 -10 -9 -9 ------------- Run | Scr Mat Mat Min Turns Passed 606 | 59 335 102 110 Spaces Moved 317 | 43 161 53 60 Core 6 | 6 . . . Treads . | . . . . Legs 311 | 37 161 53 60 Wheels . | . . . . Hover . | . . . . Flight . | . . . . Fastest Speed 50 | 50 120 120 120 Average Speed 118 | 110 120 120 120 Slowest Speed 120 | 120 120 120 120 Overloaded Moves . | . . . . Propulsion Burnouts . | . . . . Robots Hopped . | . . . . Cave-ins Triggered . | . . . . Exploration Rate (%) 14 | 3 25 8 20 Regions Visited 3 Branch Regions 1 Pre-discovered Areas 1 | . . . 1 Known Exits Taken . | . . . . Unknown Exits Taken 3 | 1 1 1 . Scrap Searched . | . . . . Spaces Dug . | . . . . Terrain Destroyed 105 | . 7 26 72 Melee . | . . . . Projectile . | . . . . AOE 105 | . 7 26 72 Terrain Rammed . | . . . . Walls Destroyed . | . . . . Machines Disabled . | . . . . Actions | -11 -10 -9 -9 --------- Run | Scr Mat Mat Min Total 440 | 54 234 78 74 Wait . | . . . . Move 314 | 42 160 52 60 Hop . | . . . . Pick Up 23 | 6 13 4 . Fast Attach . | . . . . Attach 13 | 6 3 3 1 Detach 1 | . 1 . . Swap 7 | . 4 3 . Drop 9 | . 5 4 . Fire 73 | . 48 12 13 Melee . | . . . . Ram . | . . . . Kick . | . . . . Crush . | . . . . Escape Stasis . | . . . . Rewire . | . . . . Trap . | . . . . Miscellaneous . | . . . . Route ------- -11/Scrapyard -10/Materials -9/Materials -9/Mines History --------- Turn | Location | Event 30 | -11/Scrapyard | Discovered new exit (range 13) 60 | -11/Scrapyard | Entered Materials 245 | -10/Materials | Core integrity fell below 50% 309 | -10/Materials | Build established: Mutant 391 | -10/Materials | Discovered new exit (range 5) 395 | -10/Materials | Entered another Materials area 395 | -9/Materials | Evolved 2 slots: Propulsion x1, Utility x1 467 | -9/Materials | Discovered new exit (range 6) 497 | -9/Materials | Entered Mines 572 | -9/Mines | Assembled infested the area 607 | -9/Mines | Self-destructed Last Messages --------------- as-15993 destroyed. as-44126 destroyed. as-60527 destroyed. as-32532 destroyed. The unstable cave ceiling collapses. as-09658 destroyed. as-69351 destroyed. Laser Drill disabled. as-71695 destroyed. Grenade Launcher destroyed. Destroyed Grenade Launcher. Aluminum Leg destroyed. Destroyed Aluminum Leg. C-30 ARC bursts open, deploying its payload. D-53 Grenadier unfolds itself. The unstable cave ceiling collapses. as-48278 destroyed. Grenade Launcher destroyed. K-01 Serf collects debris. Aluminum Leg destroyed. Map ----- +----------------------------------------------------+ | ???????????????????????????????? % ##?# #? | | ?????????????????????????????????# ! #?# #? | | ??????????????????????????????????# % ### #? | | ???????????????????????????????????# #? | | ???????????????????????????????????# ## ###? | | ???????????????????????????????????# ### #??? | | ??????????????????????????????????### ###?# #??? | | ??????????????????????????????????# ##???# #??? | | ???????????????????????????##?????# ####????# #??? | | ??????????????????????????? ?????# #???????# #??? | | ??????????????????????????? #????# #???????# #??? | | ???????????????????????????# #????# #??????? #??? | | ???????????????????????????# #????# #???????##???? | | ???????????????????????????# ##???# #????????????? | | ??????????????????????????## ##??# #????????????? | | ??????????????????????????# #### #????????????? | | ??????????????????????????# k #????????????? | | ??????????????????????????## #######????????????? | | ??????????????????????????## #??????????????????? | | ???????????????????????#### ##??????????????????? | | ??????????????????????## # #???????????????????? | | ????????????????????### #???????????????????? | | ????????? ????????## #???????????????????? | | ???????? ???### ##??????????????????? | | ?????????? ## #??????????????????? | | ?????????????## @ #??????????????????? | | ?????????????# ##??????????????????? | | ?????????????# a #??????????????????? | | ?????????????# % ##??????????????????? | | ?????????????# # #??????????????????? | | ?????????????## ?# #??????????????????? | | ?????????????# ???#### #??????????????????? | | ?????????????#??????? #??????????????????? | | ????????????????????# ##dd#??????????????????? | | ????????????????????## # #?????????????????? | | ?????????????????????a ## %"????????????????? | | ????????????????????? #?# ???????????????? | | ????????????????????########??# ??????????????? | | ??????????????????????????????? ??????????????? | | ???????????????????????????????? ????????????????? | | ?????????????????????????????????????????????????? | | ?????????????????????????????????????????????????? | | ?????????????????????????????????????????????????? | | ?????????????????????????????????????????????????? | | ?????????????????????????????????????????????????? | | ?????????????????????????????????????????????????? | | | | | | | | | +----------------------------------------------------+ Best States ------------- Heat Dissipation 42 Energy Generation 12 Energy Capacity 265 Matter Stores 300 Matter Capacity 300 Sight Range 16 Terrain Scan Density 10 Evasion (%) 55 Targeting Accuracy 5 Item Schematics ----------------- None Robot Schematics ------------------ None Fabricated ------------ Nothing Alien Tech Used ----------------- None Achievements -------------- None Challenges ------------ None Game ------ Seed AngularAssembledChainsword Manual? 0 Play Time 00:08:42 Cumulative 14.5 hours Start 2022.07.24 @ 15:18:18 End 2022.07.24 @ 15:25:41 Sessions 1 Manual Loads 0 Difficulty Rogue Special Mode None Game No. 40 Rogue 40 Adventurer 0 Explorer 0 Win Type - Total 0 Types 0/0/0/0/0/0/0/0/0 Lore% 21 Gallery% 20 Achievement% 17 Wizard Run 0 Options --------- ASCII 0 Keyboard 0 Movement Mouse Keybinds 0 Fullscreen 1 Font 14/SmallcapsGlow Map View 84x54 Tactical HUD 0 Map Filters NONE Filters NONE Steam 1 RUN: cb84929f-d251-408f-b44b-0a164f37d18a